fUSD/lending_fUSD_20250806
["ID","MTS","AMOUNT","RATE_DAILY","PERIOD"]
[377594315,1754448789768,-406.24,0.00037808,14]
[377594316,1754448789777,-400.0,0.00037808,14]
[377594317,1754448789786,-735.52,0.00037808,14]
[377594318,1754448789796,-400.0,0.00037808,14]
[377594319,1754448789806,-2255.41,0.00037808,14]
[377594320,1754448789815,-2297.5,0.00037808,14]
[377594321,1754448789825,-741.97,0.00037808,14]
[377594322,1754448789834,-3216.0,0.00037808,14]
[377594323,1754448789844,-654.96,0.00037808,14]
[377594324,1754448789853,-1206.25,0.00037808,14]
[377594325,1754448789862,-1381.51,0.00037808,14]
[377594326,1754448789872,-74281.09,0.00037808,14]
[377594327,1754448789884,-2322.06,0.00037808,14]
[377594328,1754448789894,-2750.06,0.00037808,14]
[377594329,1754448789904,-216.49625516,0.00037808,14]
[377594330,1754448789913,-841.14,0.00037808,14]
[377594331,1754448789924,-1570.84,0.00037808,14]
[377594332,1754448789934,-1828.82,0.00037808,14]
[377594333,1754448789944,-400.0,0.00037808,14]
[377594334,1754448789954,-400.0,0.00037808,14]
[377594335,1754448789964,-1492.94,0.00037808,14]
[377594336,1754448789973,-434.35,0.00037808,14]
[377594337,1754448790123,-761.7,0.00037808,14]
[377594338,1754448790133,-400.0,0.00037808,14]
[377594339,1754448790142,-519.39,0.00037808,14]
[377594340,1754448790153,-400.0,0.00037808,14]
[377594341,1754448790162,-2875.37,0.00037808,14]
[377594342,1754448790171,-1961.2,0.00037808,14]
[377594343,1754448790179,-3362.96,0.00037808,14]
[377594344,1754448790189,-2855.56,0.00037808,14]
[377594345,1754448790197,-2258.55,0.00037808,14]
[377594346,1754448790206,-833.52,0.00037808,14]
[377594347,1754448790216,-400.0,0.00037808,14]
[377594348,1754448790225,-1544.56,0.00037808,14]
[377594349,1754448790234,-2733.42,0.00037808,14]
[377594350,1754448790243,-1888.87,0.00037808,14]
[377594351,1754448790252,-400.0,0.00037808,14]
[377594352,1754448790262,-400.0,0.00037808,14]
[377594353,1754448790272,-2484.35,0.00037808,14]
[377594354,1754448790282,-428.48,0.00037808,14]
[377594355,1754448790293,-400.0,0.00037808,14]
[377594356,1754448790303,-406.59,0.00037808,14]
[377594357,1754448790313,-2248.43,0.00037808,14]
[377594358,1754448790323,-409.76,0.00037808,14]
[377594359,1754448790333,-1187.63,0.00037808,14]
[377594360,1754448790342,-1229.19,0.00037808,14]
[377594361,1754448790351,-725.39,0.00037808,14]
[377594362,1754448790361,-537.84,0.00037808,14]
[377594363,1754448790370,-2156.58,0.00037808,14]
[377594364,1754448790379,-455.67,0.00037808,14]
[377594365,1754448790389,-1862.83,0.00037808,14]
[377594366,1754448790398,-2047.91,0.00037808,14]
[377594367,1754448790407,-1987.91,0.00037808,14]
[377594368,1754448790416,-551.67,0.00037808,14]
[377594369,1754448790425,-1281.96,0.00037808,14]
[377594370,1754448790434,-1310.3,0.00037808,14]
[377594371,1754448790443,-450.47,0.00037808,14]
[377594372,1754448790452,-2884.45,0.00037808,14]
[377594373,1754448790461,-400.0,0.00037808,14]
[377594374,1754448790469,-1962.72,0.00037808,14]
[377594375,1754448790478,-400.0,0.00037808,14]
[377594376,1754448790487,-2626.5,0.00037808,14]
[377594377,1754448790496,-1041.11,0.00037808,14]
[377594378,1754448790505,-1939.4,0.00037808,14]
[377594379,1754448790514,-743.81,0.00037808,14]
[377594380,1754448790523,-1720.47,0.00037808,14]
[377594381,1754448790532,-1253.31,0.00037808,14]
[377594382,1754448790542,-400.0,0.00037808,14]
[377594383,1754448790551,-833.02,0.00037808,14]
[377594384,1754448790560,-2527.58,0.00037808,14]
[377594385,1754448790569,-400.0,0.00037808,14]
[377594386,1754448790579,-1233.26,0.00037808,14]
[377594387,1754448790588,-2742.82,0.00037808,14]
[377594388,1754448790597,-677.09,0.00037808,14]
[377594389,1754448790607,-400.0,0.00037808,2]
[377594390,1754448790616,-1089.73,0.00037808,14]
[377594391,1754448790625,-400.0,0.00037808,14]
[377594392,1754448790635,-6570.38,0.00037808,14]
[377594393,1754448790644,-2514.73,0.00037808,14]
[377594394,1754448790653,-2050.4,0.00037808,14]
[377594395,1754448790663,-761.42,0.00037808,14]
[377594396,1754448790673,-479.36,0.00037808,14]
[377594397,1754448790683,-1510.11,0.00037808,14]
[377594398,1754448790692,-485.39,0.00037808,14]
[377594399,1754448790702,-605.06,0.00037808,14]
[377594400,1754448790713,-953.45,0.00037808,14]
[377594401,1754448790723,-400.0,0.00037808,14]
[377594402,1754448790733,-2032.65,0.00037808,14]
[377594403,1754448790742,-2555.58,0.00037808,14]
[377594404,1754448790751,-4421.93,0.00037808,14]
[377594405,1754448790762,-400.0,0.00037808,14]
[377594406,1754448790773,-814.86,0.00037808,14]
[377594407,1754448790782,-2529.46,0.00037808,14]
[377594408,1754448790791,-421.21,0.00037808,14]
[377594409,1754448790800,-1009.38,0.00037808,14]
[377594410,1754448790809,-2230.29,0.00037808,14]
[377594411,1754448790819,-3180.14,0.00037808,14]
[377594412,1754448790828,-400.0,0.00037808,14]
[377594413,1754448790837,-2402.56,0.00037808,14]
[377594414,1754448790847,-584.03,0.00037808,14]
[377594415,1754448790857,-2007.28,0.00037808,14]
[377594416,1754448790867,-2184.0,0.00037808,14]
[377594417,1754448790877,-400.0,0.00037808,14]
[377594418,1754448790889,-759.09,0.00037808,14]
[377594419,1754448790898,-679.71,0.00037808,14]
[377594420,1754448790908,-795.77,0.00037808,14]
[377594421,1754448790919,-812.95,0.00037808,14]
[377594422,1754448790928,-3185.2,0.00037808,14]
[377594423,1754448790937,-1680.57,0.00037808,14]
[377594424,1754448790947,-2432.32,0.00037808,14]
[377594425,1754448790959,-478.98,0.00037808,14]
[377594426,1754448790968,-400.0,0.00037808,14]
[377594427,1754448790978,-971.83,0.00037808,14]
[377594428,1754448790987,-400.0,0.00037808,14]
[377594429,1754448790996,-2915.89,0.00037808,14]
[377594430,1754448791006,-653.74,0.00037808,14]
[377594431,1754448791015,-1940.76,0.00037808,14]
[377594432,1754448791025,-400.0,0.00037808,14]
[377594433,1754448791034,-400.0,0.00037808,14]
[377594434,1754448791044,-1082.53,0.00037808,14]
[377594435,1754448791053,-992.11,0.00037808,14]
[377594436,1754448791062,-408.83,0.00037808,14]
[377594437,1754448791071,-2661.52,0.00037808,14]
[377594438,1754448791081,-1599.41,0.00037808,14]
[377594439,1754448791090,-816.39,0.00037808,14]
[377594440,1754448791099,-1313.46,0.00037808,14]
[377594441,1754448791108,-2443.54,0.00037808,14]
[377594442,1754448791118,-2142.87,0.00037808,14]
[377594443,1754448791127,-1013.74,0.00037808,14]
[377594444,1754448791136,-2286.88,0.00037808,14]
[377594445,1754448791145,-2175.59,0.00037808,14]
[377594446,1754448791155,-1019.92,0.00037808,14]
[377594447,1754448791164,-3089.75,0.00037808,14]
[377594448,1754448791173,-1040.53,0.00037808,14]
[377594449,1754448791182,-3761.33,0.00037808,14]
[377594450,1754448791191,-1867.43,0.00037808,14]
[377594451,1754448791200,-2061.99,0.00037808,14]
[377594452,1754448791210,-1546.2,0.00037808,14]
[377594453,1754448791219,-1315.11,0.00037808,14]
[377594454,1754448791228,-400.0,0.00037808,14]
[377594455,1754448791238,-400.0,0.00037808,14]
[377594456,1754448791247,-1047.25,0.00037808,14]
[377594457,1754448791257,-1432.92,0.00037808,14]
[377594458,1754448791266,-400.0,0.00037808,14]
[377594459,1754448791275,-1175.98,0.00037808,14]
[377594460,1754448791284,-1402.25,0.00037808,14]
[377594461,1754448791293,-828.22,0.00037808,14]
[377594462,1754448791302,-500.0,0.00037808,38]
[377594463,1754448791313,-478.88,0.00037808,14]
[377594464,1754448791322,-400.0,0.00037808,14]
[377594465,1754448791334,-732.62,0.00037808,14]
[377594466,1754448791342,-813.13,0.00037808,14]
[377594467,1754448791351,-400.0,0.00037808,14]
[377594468,1754448791361,-431.16,0.00037808,14]
[377594469,1754448791370,-2113.48,0.00037808,14]
[377594470,1754448791379,-1451.6,0.00037808,14]
[377594471,1754448791389,-453.4,0.00037808,14]
[377594472,1754448791401,-682.09,0.00037808,14]
[377594473,1754448791411,-3720.93,0.00037808,14]
[377594474,1754448791422,-2192.19,0.00037808,14]
[377594475,1754448791433,-578.92,0.00037808,14]
[377594476,1754448791443,-1902.77,0.00037808,14]
[377594477,1754448791453,-1870.07,0.00037808,14]
[377594478,1754448791462,-449.08,0.00037808,7]
[377594479,1754448791471,-400.0,0.00037808,14]
[377594480,1754448791481,-744.99,0.00037808,14]
[377594481,1754448791491,-400.0,0.00037808,14]
[377594482,1754448791500,-1145.83,0.00037808,14]
[377594483,1754448791510,-2903.16,0.00037808,14]
[377594484,1754448791520,-1448.11,0.00037808,14]
[377594485,1754448791531,-2132.59,0.00037808,14]
[377594486,1754448791541,-2007.5,0.00037808,14]
[377594487,1754448791551,-400.0,0.00037808,14]
[377594488,1754448791559,-2062.82,0.00037808,14]
[377594489,1754448791570,-3679.16,0.00037808,14]
[377594490,1754448791579,-3514.4,0.00037808,14]
[377594491,1754448791590,-403.69354597,0.00037808,14]
[377594492,1754448791600,-1366.96,0.00037808,14]
[377594493,1754448791610,-400.0,0.00037808,14]
[377594494,1754448791619,-2716.46,0.00037808,14]
[377594495,1754448791628,-2707.72,0.00037808,14]
[377594496,1754448791637,-460.8,0.00037808,14]
[377594497,1754448791646,-1251.76,0.00037808,14]
[377594498,1754448791655,-2012.91,0.00037808,14]
[377594499,1754448791664,-1611.49,0.00037808,14]
[377594500,1754448791673,-2266.27,0.00037808,14]
[377594501,1754448791683,-400.0,0.00037808,14]
[377594502,1754448791694,-604.96,0.00037808,14]
[377594503,1754448791705,-3442.72,0.00037808,14]
[377594504,1754448791714,-801.6,0.00037808,14]
[377594505,1754448791724,-606.74,0.00037808,14]
[377594506,1754448791734,-400.0,0.00037808,14]
[377594507,1754448791745,-3610.57,0.00037808,14]
[377594508,1754448791754,-580.15,0.00037808,14]
[377594509,1754448791764,-2698.14,0.00037808,14]
[377594510,1754448791773,-881.76,0.00037808,14]
[377594511,1754448791782,-1967.92,0.00037808,14]
[377594512,1754448791792,-400.0,0.00037808,14]
[377594513,1754448791802,-2348.84,0.00037808,14]
[377594514,1754448791811,-826.11,0.00037808,14]
[377594515,1754448791821,-826.95,0.00037808,14]
[377594516,1754448791830,-958.68,0.00037808,14]
[377594517,1754448791840,-1152.57,0.00037808,14]
[377594518,1754448791850,-2097.04,0.00037808,14]
[377594519,1754448791859,-1738.83,0.00037808,14]
[377594520,1754448791869,-468.56,0.00037808,14]
[377594521,1754448791879,-1550.41,0.00037808,14]
[377594522,1754448791889,-400.0,0.00037808,14]
[377594523,1754448791898,-2945.22,0.00037808,14]
[377594524,1754448791908,-2061.05,0.00037808,14]
[377594525,1754448791918,-986.73,0.00037808,14]
[377594526,1754448791927,-522.01,0.00037808,14]
[377594527,1754448791936,-1971.84,0.00037808,14]
[377594528,1754448791945,-1605.08,0.00037808,14]
[377594529,1754448791956,-1022.7,0.00037808,14]
[377594530,1754448791970,-2744.57,0.00037808,14]
[377594531,1754448791980,-883.72,0.00037808,14]
[377594532,1754448791990,-2216.79,0.00037808,14]
[377594533,1754448791999,-400.0,0.00037808,14]
[377594534,1754448792009,-1176.86,0.00037808,14]
[377594535,1754448792018,-2001.07,0.00037808,14]
[377594536,1754448792027,-400.0,0.00037808,14]
[377594537,1754448792038,-2625.94,0.00037808,14]
[377594538,1754448792048,-1708.89,0.00037808,14]
[377594539,1754448792058,-2209.33,0.00037808,14]
[377594540,1754448792067,-1132.6,0.00037808,14]
[377594541,1754448792076,-1659.02,0.00037808,14]
[377594542,1754448792085,-2337.97,0.00037808,14]
[377594543,1754448792094,-1295.16,0.00037808,14]
[377594544,1754448792104,-1663.17,0.00037808,14]
[377594545,1754448792113,-2361.68,0.00037808,14]
[377594546,1754448792122,-2090.44,0.00037808,14]
[377594547,1754448792135,-1513.53,0.00037808,14]
[377594548,1754448792144,-949.45,0.00037808,14]
[377594549,1754448792153,-284.78981175,0.00037808,14]
[377594550,1754448792163,-2974.22,0.00037808,14]
[377594551,1754448792172,-468.15,0.00037808,14]
[377594552,1754448792181,-702.26,0.00037808,14]
[377594553,1754448792192,-2717.6,0.00037808,14]
[377594554,1754448792203,-425.69,0.00037808,14]
[377594555,1754448792212,-2095.59,0.00037808,14]
[377594556,1754448792221,-467.46,0.00037808,14]
[377594557,1754448792230,-1148.8,0.00037808,14]
[377594558,1754448792239,-1740.13,0.00037808,14]
[377594559,1754448792250,-954.12,0.00037808,14]
[377594560,1754448792261,-1198.3,0.00037808,14]
[377594561,1754448792272,-2021.48,0.00037808,14]
[377594562,1754448792282,-662.22,0.00037808,14]
[377594563,1754448792291,-2962.89,0.00037808,14]
[377594564,1754448792300,-2546.61,0.00037808,14]
[377594565,1754448792310,-504.61,0.00037808,14]
[377594566,1754448792322,-2356.45,0.00037808,14]
[377594567,1754448792331,-2130.93,0.00037808,14]
[377594568,1754448792340,-400.0,0.00037808,14]
[377594569,1754448792359,-423.2,0.00037808,14]
[377594570,1754448792371,-400.0,0.00037808,14]
[377594571,1754448792381,-2575.51,0.00037808,14]
[377594572,1754448792393,-1766.95,0.00037808,14]
[377594573,1754448792402,-400.0,0.00037808,14]
[377594574,1754448792411,-856.83,0.00037808,14]
[377594575,1754448792420,-3248.58,0.00037808,14]
[377594576,1754448792429,-5306.84,0.00037808,14]
[377594577,1754448792439,-496.21,0.00037808,14]
[377594578,1754448792448,-888.56,0.00037808,14]
[377594579,1754448792457,-547.97,0.00037808,14]
[377594580,1754448792467,-3016.17,0.00037808,14]
[377594581,1754448792476,-2668.39,0.00037808,14]
[377594582,1754448792485,-3791.14,0.00037808,14]
[377594583,1754448792494,-400.0,0.00037808,14]
[377594584,1754448792503,-605.14,0.00037808,14]
[377594585,1754448792512,-727.35,0.00037808,14]
[377594586,1754448792521,-975.71,0.00037808,14]
[377594587,1754448792530,-400.0,0.00037808,14]
[377594588,1754448792540,-400.0,0.00037808,14]
[377594589,1754448792549,-2054.01,0.00037808,14]
[377594590,1754448792558,-3485.41,0.00037808,14]
[377594591,1754448792567,-2009.81,0.00037808,14]
[377594592,1754448792578,-400.0,0.00037808,14]
[377594593,1754448792589,-2179.98,0.00037808,14]
[377594594,1754448792599,-400.0,0.00037808,14]
[377594595,1754448792609,-1517.52,0.00037808,14]
[377594596,1754448792618,-400.0,0.00037808,14]
[377594597,1754448792630,-1388.31,0.00037808,14]
[377594598,1754448792640,-957.04,0.00037808,14]
[377594599,1754448792651,-615.01,0.00037808,14]
[377594600,1754448792661,-1920.97,0.00037808,14]
[377594601,1754448792672,-2558.14,0.00037808,14]
[377594602,1754448792682,-410.84,0.00037808,14]
[377594603,1754448792693,-1672.02,0.00037808,14]
[377594604,1754448792704,-1561.14,0.00037808,14]
[377594605,1754448792714,-2448.42,0.00037808,14]
[377594606,1754448792724,-1718.51,0.00037808,14]
[377594607,1754448792733,-1537.42,0.00037808,14]
[377594608,1754448792745,-400.0,0.00037808,14]
[377594609,1754448792756,-1497.84,0.00037808,14]
[377594610,1754448792768,-2286.3,0.00037808,14]
[377594611,1754448792780,-2660.98,0.00037808,14]
[377594612,1754448792789,-1193.12,0.00037808,14]
[377594613,1754448792798,-400.0,0.00037808,14]
[377594614,1754448792807,-818.29,0.00037808,2]
[377594615,1754448792815,-400.0,0.00037808,14]
[377594616,1754448792825,-2817.66,0.00037808,14]
[377594617,1754448792835,-400.0,0.00037808,14]
[377594618,1754448792843,-400.0,0.00037808,14]
[377594619,1754448792852,-2306.54,0.00037808,14]
[377594620,1754448792861,-2354.23,0.00037808,14]
[377594621,1754448792871,-12433.87,0.00037808,14]
[377594622,1754448792884,-775.18,0.00037808,14]
[377594623,1754448792893,-400.0,0.00037808,14]
[377594624,1754448792902,-151.56,0.00037871,60]
[377594625,1754448792911,-306.0,0.0003793,2]
[377594626,1754448792921,-1632.35,0.00037968,2]
[377594627,1754448792930,-151.56,0.00037971,60]
[377594628,1754448792940,-3362.0,0.00037987,2]
[377594629,1754448792950,-956.0,0.00037987,2]
[377594630,1754448792960,-809.0,0.00037987,2]
[377594631,1754448792970,-1252.0,0.00037987,2]
[377594632,1754448792980,-2024.0,0.00037987,2]
[377594633,1754448792989,-564.0,0.00037987,2]
[377594634,1754448792998,-597.0,0.00037987,2]
[377594635,1754448793009,-1293.0,0.00037987,2]
[377594636,1754448793018,-958.0,0.00037987,2]
[377594637,1754448793028,-1170.0,0.00037987,2]
[377594638,1754448793037,-1652.0,0.00037987,2]
[377594639,1754448793046,-545.633,0.00037987,2]
[377594640,1754448793055,-2212.956,0.00037987,2]
[377594641,1754448793064,-600.0,0.00038,39]
[377594642,1754448793073,-300.0,0.00038,120]
[377594643,1754448793083,-218.0,0.00038,30]
[377594644,1754448793092,-200.0,0.0003804,2]
[377594645,1754448793102,-422.0,0.00038043,30]
[377594646,1754448793111,-151.56,0.00038071,60]
[377594647,1754448793123,-1106.87216,0.00038082,14]
[377594648,1754448793137,-887.819081,0.00038082,14]
[377594649,1754448793146,-1255.615788,0.00038082,14]
[377594650,1754448793156,-192.679796,0.00038082,14]
[377594651,1754448793165,-1721.73,0.00038082,14]
[377594652,1754448793174,-155.350478,0.00038082,14]
[377594653,1754448793183,-400.0,0.00038082,14]
[377594654,1754448793192,-400.0,0.00038082,14]
[377594655,1754448793201,-169.65155763,0.00038082,14]
[377594656,1754448793209,-400.0,0.00038082,14]
[377594657,1754448793219,-400.0,0.00038082,14]
[377594658,1754448793227,-400.0,0.00038082,14]
[377594659,1754448793236,-400.0,0.00038082,14]
[377594660,1754448793245,-400.0,0.00038082,14]
[377594661,1754448793254,-155.350478,0.00038082,14]
[377594662,1754448793264,-1879.66,0.00038082,14]
[377594663,1754448793276,-517.54,0.00038082,14]
[377594664,1754448793286,-400.0,0.00038082,14]
[377594665,1754448793298,-933.27,0.00038082,14]
[377594666,1754448793308,-400.0,0.00038082,14]
[377594667,1754448793318,-708.86,0.00038082,14]
[377594668,1754448793328,-412.42,0.00038082,14]
[377594669,1754448793339,-400.0,0.00038082,14]
[377594670,1754448793350,-415.77,0.00038082,14]
[377594671,1754448793361,-1925.55,0.00038082,14]
[377594672,1754448793370,-866.96,0.00038082,14]
[377594673,1754448793380,-523.82,0.00038082,14]
[377594674,1754448793390,-400.0,0.00038082,14]
[377594675,1754448793400,-400.0,0.00038082,14]
[377594676,1754448793410,-400.0,0.00038082,14]
[377594677,1754448793420,-1993.73,0.00038082,14]
[377594678,1754448793430,-478.37,0.00038082,14]
[377594679,1754448793439,-1455.59,0.00038082,14]
[377594680,1754448793448,-400.0,0.00038082,14]
[377594681,1754448793457,-1137.51,0.00038082,14]
[377594682,1754448793466,-1494.66,0.00038082,14]
[377594683,1754448793475,-2002.12,0.00038082,14]
[377594684,1754448793484,-400.0,0.00038082,14]
[377594685,1754448793493,-400.0,0.00038082,14]
[377594686,1754448793502,-1040.39,0.00038082,14]
[377594687,1754448793511,-400.0,0.00038082,14]
[377594688,1754448793520,-400.0,0.00038082,14]
[377594689,1754448793529,-497.98870414,0.00038082,14]
[377594690,1754448793538,-400.0,0.00038082,14]
[377594691,1754448793546,-400.0,0.00038082,14]
[377594692,1754448793555,-400.0,0.00038082,14]
[377594693,1754448793565,-662.16,0.00038082,14]
[377594694,1754448793574,-400.0,0.00038082,14]
[377594695,1754448793583,-2153.57,0.00038082,14]
[377594696,1754448793592,-400.0,0.00038082,14]
[377594697,1754448793602,-1355.9,0.00038082,14]
[377594698,1754448793611,-904.68,0.00038082,14]
[377594699,1754448793620,-545.31,0.00038082,14]
[377594700,1754448793631,-400.0,0.00038082,14]
[377594701,1754448793642,-400.0,0.00038082,14]
[377594702,1754448793652,-400.0,0.00038082,14]
[377594703,1754448793661,-400.0,0.00038082,14]
[377594704,1754448793670,-726.19,0.00038082,14]
[377594705,1754448793679,-1848.23,0.00038082,14]
[377594706,1754448793688,-249.55281723,0.00038082,14]
[377594707,1754448793697,-400.0,0.00038082,14]
[377594708,1754448793706,-837.58,0.00038082,14]
[377594709,1754448793715,-400.0,0.00038082,14]
[377594710,1754448793724,-400.0,0.00038082,14]
[377594711,1754448793734,-426.53,0.00038082,14]
[377594712,1754448793743,-2053.66,0.00038082,14]
[377594713,1754448793753,-400.0,0.00038082,14]
[377594714,1754448793763,-463.84,0.00038082,14]
[377594715,1754448793772,-1680.73,0.00038082,14]
[377594716,1754448793782,-400.0,0.00038082,14]
[377594717,1754448793792,-589.79,0.00038082,14]
[377594718,1754448793802,-400.0,0.00038082,14]
[377594719,1754448793812,-400.0,0.00038082,14]
[377594720,1754448793822,-1174.99,0.00038082,14]
[377594721,1754448793834,-485.82,0.00038082,14]
[377594722,1754448793845,-1560.83,0.00038082,14]
[377594723,1754448793855,-1343.09,0.00038082,14]
[377594724,1754448793864,-346.8,0.00038082,14]
[377594725,1754448793873,-400.0,0.00038082,14]
[377594726,1754448793885,-400.0,0.00038082,14]
[377594727,1754448793896,-400.0,0.00038082,14]
[377594728,1754448793905,-652.79,0.00038082,14]
[377594729,1754448793915,-807.49,0.00038082,14]
[377594730,1754448793925,-2272.01,0.00038082,14]
[377594731,1754448793934,-439.11,0.00038082,14]
[377594732,1754448793943,-400.0,0.00038082,14]
[377594733,1754448793952,-400.0,0.00038082,14]
[377594734,1754448793963,-1269.54,0.00038082,14]
[377594735,1754448793973,-400.0,0.00038082,14]
[377594736,1754448793982,-400.0,0.00038082,14]
[377594737,1754448793992,-1601.77,0.00038082,14]
[377594738,1754448794002,-400.0,0.00038082,14]
[377594739,1754448794011,-549.88,0.00038082,14]
[377594740,1754448794020,-691.52,0.00038082,14]
[377594741,1754448794030,-400.0,0.00038082,14]
[377594742,1754448794039,-937.63,0.00038082,14]
[377594743,1754448794049,-400.0,0.00038082,14]
[377594744,1754448794058,-400.0,0.00038082,14]
[377594745,1754448794067,-1238.53,0.00038082,14]
[377594746,1754448794079,-842.35,0.00038082,14]
[377594747,1754448794088,-758.93,0.00038082,14]
[377594748,1754448794099,-228.63556377,0.00038082,14]
[377594749,1754448794109,-566.9,0.00038082,14]
[377594750,1754448794119,-1884.93,0.00038082,14]
[377594751,1754448794130,-1051.66,0.00038082,14]
[377594752,1754448794139,-1133.77,0.00038082,14]
[377594753,1754448794148,-1340.96,0.00038082,14]
[377594754,1754448794157,-1269.95,0.00038082,14]
[377594755,1754448794167,-1245.02,0.00038082,14]
[377594756,1754448794176,-400.0,0.00038082,14]
[377594757,1754448794185,-400.0,0.00038082,14]
[377594758,1754448794194,-400.0,0.00038082,14]
[377594759,1754448794204,-1135.75,0.00038082,14]
[377594760,1754448794215,-400.96,0.00038082,14]
[377594761,1754448794225,-888.4,0.00038082,14]
[377594762,1754448794234,-400.0,0.00038082,14]
[377594763,1754448794338,-1391.51,0.00038082,14]
[377594764,1754448794376,-2022.35,0.00038082,14]
[377594765,1754448794385,-400.0,0.00038082,14]
[377594766,1754448794395,-885.84,0.00038082,14]
[377594767,1754448794404,-400.0,0.00038082,14]
[377594768,1754448794413,-1485.63,0.00038082,14]
[377594769,1754448794423,-577.94,0.00038082,14]
[377594770,1754448794432,-400.0,0.00038082,14]
[377594771,1754448794441,-2205.6,0.00038082,14]
[377594772,1754448794450,-594.52,0.00038082,14]
[377594773,1754448794459,-516.69,0.00038082,14]
[377594774,1754448794469,-400.99,0.00038082,14]
[377594775,1754448794478,-400.0,0.00038082,14]
[377594776,1754448794488,-963.31,0.00038082,14]
[377594777,1754448794496,-279.45072776,0.00038082,14]
[377594778,1754448794506,-798.43,0.00038082,14]
[377594779,1754448794515,-400.0,0.00038082,14]
[377594780,1754448794524,-400.0,0.00038082,14]
[377594781,1754448794533,-825.61,0.00038082,14]
[377594782,1754448794542,-400.0,0.00038082,14]
[377594783,1754448794552,-400.0,0.00038082,14]
[377594784,1754448794561,-1955.89,0.00038082,14]
[377594785,1754448794570,-400.0,0.00038082,14]
[377594786,1754448794579,-425.14,0.00038082,14]
[377594787,1754448794588,-872.75,0.00038082,14]
[377594788,1754448794597,-672.46,0.00038082,14]
[377594789,1754448794607,-666.07,0.00038082,14]
[377594790,1754448794616,-400.0,0.00038082,7]
[377594791,1754448794625,-2048.4,0.00038082,14]
[377594792,1754448794635,-1186.37,0.00038082,14]
[377594793,1754448794644,-1867.25,0.00038082,14]
[377594794,1754448794653,-400.0,0.00038082,14]
[377594795,1754448794662,-400.0,0.00038082,14]
[377594796,1754448794671,-400.0,0.00038082,14]
[377594797,1754448794680,-1486.37,0.00038082,14]
[377594798,1754448794689,-1282.75,0.00038082,14]
[377594799,1754448794698,-400.0,0.00038082,14]
[377594800,1754448794707,-620.41,0.00038082,14]
[377594801,1754448794717,-426.54,0.00038082,14]
[377594802,1754448794726,-1685.19,0.00038082,14]
[377594803,1754448794735,-546.47,0.00038082,14]
[377594804,1754448794745,-400.0,0.00038082,14]
[377594805,1754448794754,-1042.07,0.00038082,14]
[377594806,1754448794763,-607.47,0.00038082,14]
[377594807,1754448794772,-400.0,0.00038082,14]
[377594808,1754448794782,-1387.34,0.00038082,14]
[377594809,1754448794791,-1608.62,0.00038082,14]
[377594810,1754448794800,-1266.36,0.00038082,14]
[377594811,1754448794810,-640.46,0.00038082,14]
[377594812,1754448794819,-1198.83,0.00038082,14]
[377594813,1754448794828,-850.06,0.00038082,14]
[377594814,1754448794838,-1040.96,0.00038082,14]